{"text_format":"1","workbook":"xlsx","n_sheets":6,"sheets":["RTA1","Important Information","Plant Details","Lists","Sheet1","Sheet2"],"not_rendered":{"charts":0,"images":3,"macros":1,"external_links":1,"defined_names":33,"comments":0,"pivot_tables":3},"unopened":[],"bounds":{"document_bytes":16777216,"sheet_cells":100000,"rows_first":2000,"rows_last":500,"rows_between":2000,"halvings":0,"cell_chars":16384,"cell_head_chars":4096},"cells_cut":0,"cells_raw":0,"read":"whole","date_system":"1900"}

{"sheet":"RTA1","index":0,"n_rows":50,"n_cols":6,"rows_kept":50,"cut":false,"hidden":false,"merged":[[48,1,48,5],[49,1,49,5],[11,2,11,4],[14,2,14,4],[20,1,21,1],[20,3,21,3],[20,4,21,4],[44,2,44,3],[42,1,42,5],[46,1,46,5],[47,1,47,5],[40,1,40,4],[41,1,41,4]]}
[]
[]
[]
[]
[]
[]
[null,"Releases of IED Pollutants to Air "]
[]
[]
[null,"Operational Summary for the year:",2019,"Select Reporting Year"]
[]
[null,"Operator:",null,null,null,"     Select Operator"]
[]
[]
[null,"Site Location:",null,null,null,"     Select Site Location"]
[]
[null,"Permit Number:",{"$f":"IF(ISERROR(VLOOKUP(TheSite, PlantDetails, 3, FALSE)), \"\", VLOOKUP(TheSite, PlantDetails, 3, FALSE))","v":""},"LCP Reference:",{"$f":"IF(ISERROR(VLOOKUP(TheSite, PlantDetails, 2, FALSE)), \"\", VLOOKUP(TheSite, PlantDetails, 2, FALSE))","v":""}]
[]
[null,"Note: beginning 1 January 2016, a return is required for each LCP within 28 days of the end of each quarter"]
[]
[null,"Air Emissions:","SO2 ","NOx                     (tonnes)","Dust                          (tonnes)"]
[null,null,"(tonnes)"]
[null,"January "]
[null,"February"]
[null,"March"]
[null,"Total for Quarter 1",{"$f":"SUM(C23:C25)","v":0},{"$f":"SUM(D23:D25)","v":0},{"$f":"SUM(E23:E25)","v":0}]
[null,"April"]
[null,"May"]
[null,"June"]
[null,"Total for Quarter 2",{"$f":"SUM(C27:C29)","v":0},{"$f":"SUM(D27:D29)","v":0},{"$f":"SUM(E27:E29)","v":0}]
[null,"July"]
[null,"August"]
[null,"September"]
[null,"Total for Quarter 3",{"$f":"SUM(C31:C33)","v":0},{"$f":"SUM(D31:D33)","v":0},{"$f":"SUM(E31:E33)","v":0}]
[null,"October"]
[null,"November"]
[null,"December"]
[null,"Total for Quarter 4",{"$f":"SUM(C35:C37)","v":0},{"$f":"SUM(D35:D37)","v":0},{"$f":"SUM(E35:E37)","v":0}]
[]
[null,"Annual Total",{"$f":"SUM(Q4_SO2+Q3_SO2+Q2_SO2+Q1_SO2)","v":0},{"$f":"SUM(Q4_NOx+Q3_NOx+Q2_NOx+Q1_NOx)","v":0},{"$f":"SUM(Q4_PM+Q3_PM+Q2_PM+Q1_PM)","v":0}]
[null,{"$f":"IF(SUMPRODUCT(ISTEXT($C$23:$E$29)+ISTEXT($C$31:$E$37))>0,\"Please do not use text in place of numbers\",\"\")","v":""}]
[null,"Please do not enter text"]
[null,"I confirm that this data is not knowingly reported with any omissions, errors or misrepresentation. All measurement equipment used to generate the data has been appropriately calibrated and maintained regularly; this includes calibration against traceable international measurement standards where available. The data is supported by appropriate record keeping. IT is designed, documented, tested, implemented, controlled and maintained to ensure reliable, accurate and timely processing of data; data handling and calculations have been appropriate; data has been checked for false and unusual measurements. The annual report of emissions for the above participating large combustion plant has been verified in accordance with the requirements of the Large Combustion Plants (Transitional National Plan) Regulations 2015."]
[]
[null,"Name of the operator staff responsible for the quality of data supplied to the Register in accordance with the principles above.",null,null,"Date:"]
[]
[null,"1. Data must be reported in tonnes to 2 decimal places"]
[null,"2. All forms must be saved in the format IED_RTA1_Quarter-Inventory_Year_LCP Reference  i.e. IED_RTA1_Q1_20xx_LCPxxx \n "]
[null,"3. No PDF documents shall be accepted "]
[null,"4. Upload Forms held on GOV.UK will be accepted other variants of the forms will be automatically rejected which may impact statutory obligations to report on time.\n"]

{"sheet":"Important Information","index":1,"n_rows":63,"n_cols":16,"rows_kept":63,"cut":false,"hidden":false,"merged":[[62,2,62,12],[2,3,2,12],[49,11,49,15],[51,11,51,15],[53,11,53,15],[55,11,55,15],[57,11,57,15]]}
[]
[]
[null,null,null,"IED RTA1 FILE FORMAT - Guidance"]
[]
[null,1,"File Format - Description Breakdown"]
[]
[null,null,null,"Regime Form","-","Qtr","-","Year","-","LCP Ref. "]
[]
[]
[null,null,null,null,"A"]
[]
[]
[null,null,null,null,null,null,"B"]
[]
[null,null,null,null,null,null,null,null,"C"]
[]
[]
[null,null,null,null,null,null,null,null,null,null,"D"]
[]
[]
[null,2,"Description Breakdown - Reference to IED RTA1 Form"]
[]
[]
[]
[]
[]
[]
[]
[null,null,null,null,"A","IED RTA1"]
[]
[null,null,null,null,null,null,"B","Q1"]
[null,null,null,null,null,null,null,"Q2"]
[null,null,null,null,null,null,null,"Q3"]
[null,null,null,null,null,null,null,"Q4"]
[]
[null,null,null,null,null,null,null,null,"C","2016 - 2020"]
[]
[]
[]
[]
[]
[null,null,null,null,null,null,null,null,null,null,"D","5 to 418",null,"LCP Ref:  ",{"$f":"IF(ISERROR(VLOOKUP(TheSite, PlantDetails, 2, FALSE)), \"\", VLOOKUP(TheSite, PlantDetails, 2, FALSE))","v":""}]
[]
[]
[]
[null,3,"Real Examples of how IED RTA1 forms must be saved & emailed to the Environment Agency:",null,null,null,null,null,null,null,null,null,null,null,null,"TNP@environment-agency.gov.uk"]
[]
[null,null,null,"Example File Format:",null,null,null,null,null,null,null,"This equates to the following descriptions:"]
[]
[null,null,"IED_RTA1 _Q1_2016_LCPxxx",null,null,null,null,null,null,null," ","Quarter 1 (return)-2016-LCP Reference XXX (Refer to D)"]
[]
[null,null,"IED_RTA1 _Q2_2016_LCPxxx",null,null,null,null,null,null,null,null,"Quarter 2 (return)-2016-LCP Reference XXX (Refer to D)"]
[]
[null,null,"IED_RTA1 _Q3_2016_LCPxxx",null,null,null,null,null,null,null,null,"Quarter 3 (return)-2016-LCP Reference XXX (Refer to D)"]
[]
[null,null,"IED_RTA1 _Q4_2016_LCPxxx",null,null,null,null,null,null,null,null,"Quarter 4 (return)-2016-LCP Reference XXX (Refer to D)"]
[]
[null,null,"IED_RTA1 _Q1_2017_LCPxxx",null,null,null,null,null,null,null,null,"Quarter 1 (return)-2017-LCP Reference XXX (Refer to D)"]
[]
[]
[]
[]
[null,null,"If you require any further information or have any queries please contact:",null,null,null,null,null,null,null,null,null,null,"TNP@environment-agency.gov.uk"]

{"sheet":"Plant Details","index":2,"n_rows":102,"n_cols":11,"rows_kept":102,"cut":false,"hidden":true,"merged":[]}
["Hide Sheet"]
[]
[]
["Site Nameand LCP reference","LCP Reference","Permit Number","Sector","Operator Name","Year","Cross Check"]
["Kilroot Power Station",5,"P0120/06A",null,"AES Kilroot Power Limited",2016,{"$f":"VLOOKUP(B5,[1]NOx!$I$6:$I$101,1,FALSE)","v":5}]
["Stoneywood Mill",8,"PPC/N/20005",null,"Arjo Wiggins",2017,{"$f":"VLOOKUP(B6,[1]NOx!$I$6:$I$101,1,FALSE)","v":8}]
["Boilers 9 & 10",26,"PPC/A/1090147",null,"Ineos Infrastructure (Grangemouth) Limited",2018,{"$f":"VLOOKUP(B7,[1]NOx!$I$6:$I$101,1,FALSE)","v":26}]
["Boilers 14 & 15",29,"PPC/A/1090147",null,"Ineos Infrastructure (Grangemouth) Limited",2019,{"$f":"VLOOKUP(B8,[1]NOx!$I$6:$I$101,1,FALSE)","v":29}]
["Boiler 8",30,"PPC/A/1090147",null,"Ineos Infrastructure (Grangemouth) Limited",2020,{"$f":"VLOOKUP(B9,[1]NOx!$I$6:$I$101,1,FALSE)","v":30}]
["British Salt Boiler Train",32,"FP3034XD",null,"British Salt Limited",null,{"$f":"VLOOKUP(B10,[1]NOx!$I$6:$I$101,1,FALSE)","v":32}]
["British Sugar Newark Boiler Train",35,"BK9385IH",null,"British Sugar Plc",null,{"$f":"VLOOKUP(B11,[1]NOx!$I$6:$I$101,1,FALSE)","v":35}]
["Bury St Edmonds Boilers CHP plant",37,"BX2094IJ",null,"British Sugar Plc",null,{"$f":"VLOOKUP(B12,[1]NOx!$I$6:$I$101,1,FALSE)","v":37}]
["Wissington CHP plant",38,"BX2108IQ",null,"British Sugar Plc",null,{"$f":"VLOOKUP(B13,[1]NOx!$I$6:$I$101,1,FALSE)","v":38}]
["Dalry DSM CHP (Turbine)(Boiler)",39,"PPC/W/20037",null,"DSM Nutritional Products (UK) Limited",null,{"$f":"VLOOKUP(B14,[1]NOx!$I$6:$I$101,1,FALSE)","v":39}]
["King's Lynn Power Station GT1",48,"BP3239LA",null,"Centrica KL Limited",null,{"$f":"VLOOKUP(B15,[1]NOx!$I$6:$I$101,1,FALSE)","v":48}]
["South Humber Bank Power Station GT 13",49,"MP3235LY",null,"EP SHB Limited",null,{"$f":"VLOOKUP(B16,[1]NOx!$I$6:$I$101,1,FALSE)","v":49}]
["South Humber Bank Power Station GTs 11 & 12",50,"MP3235LY",null,"EP SHB Limited",null,{"$f":"VLOOKUP(B17,[1]NOx!$I$6:$I$101,1,FALSE)","v":50}]
["South Humber Bank Power Station GTs 21 & 22",51,"MP3235LY",null,"EP SHB Limited",null,{"$f":"VLOOKUP(B18,[1]NOx!$I$6:$I$101,1,FALSE)","v":51}]
["Killingholme Power Station GT1",52,"SP3133LY",null,"Centrica KPS Limited (Closed)",null,{"$f":"VLOOKUP(B19,[1]NOx!$I$6:$I$101,1,FALSE)","v":52}]
["Killingholme Power Station GT2",53,"SP3133LY",null,"Centrica KPS Limited (Closed)",null,{"$f":"VLOOKUP(B20,[1]NOx!$I$6:$I$101,1,FALSE)","v":53}]
["Killingholme Power Station GT3",54,"SP3133LY",null,"Centrica KPS Limited (Closed)",null,{"$f":"VLOOKUP(B21,[1]NOx!$I$6:$I$101,1,FALSE)","v":54}]
["Barry Cogeneration Plant",60,"EPR/JP3632ZH",null,"Dow Silicones UK Ltd",null,{"$f":"VLOOKUP(B22,[1]NOx!$I$6:$I$101,1,FALSE)","v":60}]
["Deeside Power Station GT1",83,"EPR/XP3131VK",null,"Deeside Power (UK) Limited",null,{"$f":"VLOOKUP(B23,[1]NOx!$I$6:$I$101,1,FALSE)","v":83}]
["Deeside Power Station GT2",84,"EPR/XP3131VK",null,"Deeside Power (UK) Limited",null,{"$f":"VLOOKUP(B24,[1]NOx!$I$6:$I$101,1,FALSE)","v":84}]
["Drax Power Station Boiler Train",91,"VP3530LS",null,"Drax Power Limited",null,{"$f":"VLOOKUP(B25,[1]NOx!$I$6:$I$101,1,FALSE)","v":91}]
["Castleford Power Station CCGT1",92,"BK1627IX",null,"E.ON UK Cogeneration Limited",null,{"$f":"VLOOKUP(B26,[1]NOx!$I$6:$I$101,1,FALSE)","v":92}]
["Thornhill Power Station CCGT1",95,"JP3430LC",null,"E.ON UK Cogeneration Limited",null,{"$f":"VLOOKUP(B27,[1]NOx!$I$6:$I$101,1,FALSE)","v":95}]
["Connah’s Quay Unit 1",96,"EPR/NP3037AF",null,"Uniper UK Limited",null,{"$f":"VLOOKUP(B28,[1]NOx!$I$6:$I$101,1,FALSE)","v":96}]
["Connah's Quay Unit 2",97,"EPR/NP3037AF",null,"Uniper UK Limited",null,{"$f":"VLOOKUP(B29,[1]NOx!$I$6:$I$101,1,FALSE)","v":97}]
["Connah’s Quay Unit 3",98,"EPR/NP3037AF",null,"Uniper UK Limited",null,{"$f":"VLOOKUP(B30,[1]NOx!$I$6:$I$101,1,FALSE)","v":98}]
["Connah’s Quay Unit 4",99,"EPR/NP3037AF",null,"Uniper UK Limited",null,{"$f":"VLOOKUP(B31,[1]NOx!$I$6:$I$101,1,FALSE)","v":99}]
["Cottam Development Centre Power Station GT1",100,"NP3033RD",null,"Uniper UK Limited",null,{"$f":"VLOOKUP(B32,[1]NOx!$I$6:$I$101,1,FALSE)","v":100}]
["Enfield Power Station GT1",101,"NP3833RC",null,"Uniper UK Limited",null,{"$f":"VLOOKUP(B33,[1]NOx!$I$6:$I$101,1,FALSE)","v":101}]
["Killingholme GT11",108,"VP3933RJ",null,"Uniper UK Limited",null,{"$f":"VLOOKUP(B34,[1]NOx!$I$6:$I$101,1,FALSE)","v":108}]
["Killingholme GT12",109,"VP3933RJ",null,"Uniper UK Limited",null,{"$f":"VLOOKUP(B35,[1]NOx!$I$6:$I$101,1,FALSE)","v":109}]
["Killingholme GT21",110,"VP3933RJ",null,"Uniper UK Limited",null,{"$f":"VLOOKUP(B36,[1]NOx!$I$6:$I$101,1,FALSE)","v":110}]
["Killingholme GT22",111,"VP3933RJ",null,"Uniper UK Limited",null,{"$f":"VLOOKUP(B37,[1]NOx!$I$6:$I$101,1,FALSE)","v":111}]
["Port of Liverpool CHP GT1",115,"BK3506IS",null,"E.On UK CHP Limited",null,{"$f":"VLOOKUP(B38,[1]NOx!$I$6:$I$101,1,FALSE)","v":115}]
["Ratcliffe on Soar Power Station",116,"EP3133RZ",null,"Uniper UK Limited",null,{"$f":"VLOOKUP(B39,[1]NOx!$I$6:$I$101,1,FALSE)","v":116}]
["Winnington CHP GT",117,"EP3337N",null,"Winnington CHP Limited",null,{"$f":"VLOOKUP(B40,[1]NOx!$I$6:$I$101,1,FALSE)","v":117}]
["Sandbach Power GT1",118,"BS5371IZ",null,"E.ON UK Cogeneration Limited",null,{"$f":"VLOOKUP(B41,[1]NOx!$I$6:$I$101,1,FALSE)","v":118}]
["Cottam Power Station Boiler Train",120,"WP3135JL",null,"EDF Energy (Thermal Generation) Limited (Closed)",null,{"$f":"VLOOKUP(B42,[1]NOx!$I$6:$I$101,1,FALSE)","v":120}]
["EDF West Burton LCP 1",130,"SP3935LW",null,"EDF Energy (Thermal Generation) Limited",null,{"$f":"VLOOKUP(B43,[1]NOx!$I$6:$I$101,1,FALSE)","v":130}]
["EDF West Burton LCP 2",131,"SP3935LW",null,"EDF Energy (Thermal Generation) Limited",null,{"$f":"VLOOKUP(B44,[1]NOx!$I$6:$I$101,1,FALSE)","v":131}]
["Elean Power Station Biomass Boiler",135,"AP3130LY",null,"EPR Ely Limited",null,{"$f":"VLOOKUP(B45,[1]NOx!$I$6:$I$101,1,FALSE)","v":135}]
["Peterhead Power Station Block",164,"PPC/A/1008802",null,"SSE",null,{"$f":"VLOOKUP(B46,[1]NOx!$I$6:$I$101,1,FALSE)","v":164}]
["Rugeley Power Boiler Plant",197,"EP3538LB",null,"Rugeley Power Limited (Closed)",null,{"$f":"VLOOKUP(B47,[1]NOx!$I$6:$I$101,1,FALSE)","v":197}]
["KG Ethylene Plant 36-F-501A",200,"PPC/A/1088953",null,"Ineos Chemicals (Grangemouth) Limited",null,{"$f":"VLOOKUP(B48,[1]NOx!$I$6:$I$101,1,FALSE)","v":200}]
["KG Ethylene Plant 36-F-501B",201,"PPC/A/1088953",null,"Ineos Chemicals (Grangemouth) Limited",null,{"$f":"VLOOKUP(B49,[1]NOx!$I$6:$I$101,1,FALSE)","v":201}]
["Keadby Power Station GT1",202,"YP3133LL",null,"Keadby Generation Limited",null,{"$f":"VLOOKUP(B50,[1]NOx!$I$6:$I$101,1,FALSE)","v":202}]
["Keadby Power Station GT2",203,"YP3133LL",null,"Keadby Generation Limited",null,{"$f":"VLOOKUP(B51,[1]NOx!$I$6:$I$101,1,FALSE)","v":203}]
["Keadby Power Station GT3",204,"YP3133LL",null,"Keadby Generation Limited",null,{"$f":"VLOOKUP(B52,[1]NOx!$I$6:$I$101,1,FALSE)","v":204}]
["Kemsley CHP Package Boilers A-C",206,"BJ7395IG",null,"E.On UK CHP Limited",null,{"$f":"VLOOKUP(B53,[1]NOx!$I$6:$I$101,1,FALSE)","v":206}]
["Kemsley CHP Package Boilers D-F 2",207,"BJ7395IG",null,"E.On UK CHP Limited",null,{"$f":"VLOOKUP(B54,[1]NOx!$I$6:$I$101,1,FALSE)","v":207}]
["Kemsley CHP - GT & WHRB A/B",208,"BJ7395IG",null,"E.On UK CHP Limited",null,{"$f":"VLOOKUP(B55,[1]NOx!$I$6:$I$101,1,FALSE)","v":208}]
["Longannet Power Station",213,"PPC/A/1008873",null,"Scottish Power (Closed)",null,{"$f":"VLOOKUP(B56,[1]NOx!$I$6:$I$101,1,FALSE)","v":213}]
["Medway Power Station CT1",218,"HP3939LN",null,"Medway Power Limited",null,{"$f":"VLOOKUP(B57,[1]NOx!$I$6:$I$101,1,FALSE)","v":218}]
["Medway Power Station CT2",219,"HP3939LN",null,"Medway Power Limited",null,{"$f":"VLOOKUP(B58,[1]NOx!$I$6:$I$101,1,FALSE)","v":219}]
["Michelin Tyre Plant",220,"PPC/E/0020035",null,"Michelin Tyre Plc",null,{"$f":"VLOOKUP(B59,[1]NOx!$I$6:$I$101,1,FALSE)","v":220}]
["STD GT1/GT2","221/414","FP3031HJ",null,"PX Limited",null,{"$f":"VLOOKUP(B60,[1]NOx!$I$6:$I$101,1,FALSE)","v":"221/414"}]
["Warrington Silica Natural Gas Boiler Train",254,"RP3233GW",null,"PQ Silicas UK Limited",null,{"$f":"VLOOKUP(B61,[1]NOx!$I$6:$I$101,1,FALSE)","v":254}]
["Versalis UK Limited Grangemouth",264,"PPC/A/1005112",null,"Versalis UK Ltd ",null,{"$f":"VLOOKUP(B62,[1]NOx!$I$6:$I$101,1,FALSE)","v":264}]
["Great Yarmouth Power Station GT1",267,"KP3531US",null,"RWE Generation UK Plc",null,{"$f":"VLOOKUP(B63,[1]NOx!$I$6:$I$101,1,FALSE)","v":267}]
["Hythe Power Station (Cogen CHP GT1)",269,"EPR CP3139QJ",null,"RWE Generation UK Plc",null,{"$f":"VLOOKUP(B64,[1]NOx!$I$6:$I$101,1,FALSE)","v":269},"was Npower Cogen (Hythe) Limited"]
["Hythe Power Station (Cogen Boiler Train)",268,"EPR CP3139QJ",null,"RWE Generation UK Plc",null,{"$f":"VLOOKUP(B65,[1]NOx!$I$6:$I$101,1,FALSE)","v":268},"was Npower Cogen (Hythe) Limited"]
["Ineos GT1",271,"HP3137ZK",null,"INEOS Nitriles (UK) Limited",null,{"$f":"VLOOKUP(B66,[1]NOx!$I$6:$I$101,1,FALSE)","v":271},"was RWE Npower Cogen (Ineos Nitriles)","Ineos GT1",271,"HP3137ZK"]
["Little Barford Power Station GT1",272,"AP3630LG",null,"RWE Generation UK Plc",null,{"$f":"VLOOKUP(B67,[1]NOx!$I$6:$I$101,1,FALSE)","v":272}]
["Little Barford Power Station GT2",273,"AP3630LG",null,"RWE Generation UK Plc",null,{"$f":"VLOOKUP(B68,[1]NOx!$I$6:$I$101,1,FALSE)","v":273}]
["Didcot B Module 5",276,"YP3930LZ",null,"RWE Generation UK Plc",null,{"$f":"VLOOKUP(B69,[1]NOx!$I$6:$I$101,1,FALSE)","v":276}]
["Didcot B Module 6",277,"YP3930LZ",null,"RWE Generation UK Plc",null,{"$f":"VLOOKUP(B70,[1]NOx!$I$6:$I$101,1,FALSE)","v":277}]
["Aberthaw Power Station",283,"EPR/RP3133LD",null,"RWE Generation UK Plc",null,{"$f":"VLOOKUP(B71,[1]NOx!$I$6:$I$101,1,FALSE)","v":283}]
["Wilton Olefins Boilers",292,"BS3590IE",null,"Sabic UK Petrochemicals Limited",null,{"$f":"VLOOKUP(B72,[1]NOx!$I$6:$I$101,1,FALSE)","v":292}]
["Snodland GT1",294,"BJ5706IM",null,"SSE Plc",null,{"$f":"VLOOKUP(B73,[1]NOx!$I$6:$I$101,1,FALSE)","v":294}]
["Chickerall Generation Site OCGT1",295,"FP3230LM",null,"SSEPG (Operations) Limited",null,{"$f":"VLOOKUP(B74,[1]NOx!$I$6:$I$101,1,FALSE)","v":295}]
["Burghfield Generation Site OCGT1",296,"ZP3130LJ",null,"SSEPG (Operations) Limited",null,{"$f":"VLOOKUP(B75,[1]NOx!$I$6:$I$101,1,FALSE)","v":296}]
["Redcar Power Station Boiler ",297,"JP3638HM",null,"Sahaviriya Steel Industries UK",null,{"$f":"VLOOKUP(B76,[1]NOx!$I$6:$I$101,1,FALSE)","v":297}]
["Saltend Co-generation Hull Boiler A4",299,"QP3539LE",null,"Saltend Cogeneration Company Limited",null,{"$f":"VLOOKUP(B77,[1]NOx!$I$6:$I$101,1,FALSE)","v":299}]
["Saltend Co-generation Hull Turbine A1",300,"QP3539LE",null,"Saltend Cogeneration Company Limited",null,{"$f":"VLOOKUP(B78,[1]NOx!$I$6:$I$101,1,FALSE)","v":300}]
["Saltend Co-generation Hull Turbine A2",301,"QP3539LE",null,"Saltend Cogeneration Company Limited",null,{"$f":"VLOOKUP(B79,[1]NOx!$I$6:$I$101,1,FALSE)","v":301}]
["Saltend Co-generation Hull Turbine A3",302,"QP3539LE",null,"Saltend Cogeneration Company Limited",null,{"$f":"VLOOKUP(B80,[1]NOx!$I$6:$I$101,1,FALSE)","v":302}]
["Scottish and Southern Energy Fiddlers Ferry",309,"BS8192IV",null,"Keadby Generation Limited",null,{"$f":"VLOOKUP(B81,[1]NOx!$I$6:$I$101,1,FALSE)","v":309}]
["Scottish and Southern Energy Salt Union OCGT",311,"SP3730BW",null,"SSE Generation Limited (Closed)",null,{"$f":"VLOOKUP(B82,[1]NOx!$I$6:$I$101,1,FALSE)","v":311}]
["Uskmouth Power Plant",312,"EPR/LP3131SW",null,"Simec Uskmouth Power Limited",null,{"$f":"VLOOKUP(B83,[1]NOx!$I$6:$I$101,1,FALSE)","v":312}]
["Sellafield GT1",316,"BM4317IX",null,"Sellafield Limited",null,{"$f":"VLOOKUP(B84,[1]NOx!$I$6:$I$101,1,FALSE)","v":316}]
["Sellafield GT2",317,"BM4317IX",null,"Sellafield Limited",null,{"$f":"VLOOKUP(B85,[1]NOx!$I$6:$I$101,1,FALSE)","v":317}]
["Sellafield GT3",318,"BM4317IX",null,"Sellafield Limited",null,{"$f":"VLOOKUP(B86,[1]NOx!$I$6:$I$101,1,FALSE)","v":318}]
["Sellafield Aux Boiler",319,"BM4317IX",null,"Sellafield Limited",null,{"$f":"VLOOKUP(B87,[1]NOx!$I$6:$I$101,1,FALSE)","v":319}]
["Boiler Plant",330,"BS3824IJ",null,"Solvay Interox Limited (Closed)",null,{"$f":"VLOOKUP(B88,[1]NOx!$I$6:$I$101,1,FALSE)","v":330}]
["Port Talbot Service Boilers",337,"EPR/BL7108IM",null,"Tata Steel UK Limited",null,{"$f":"VLOOKUP(B89,[1]NOx!$I$6:$I$101,1,FALSE)","v":337}]
["Port Talbot Mitchell Boiler",338,"EPR/BL7108IM",null,"Tata Steel UK Limited",null,{"$f":"VLOOKUP(B90,[1]NOx!$I$6:$I$101,1,FALSE)","v":338}]
["Port Talbot A5 Boiler",339,"EPR/BL7108IM",null,"Tata Steel UK Limited",null,{"$f":"VLOOKUP(B91,[1]NOx!$I$6:$I$101,1,FALSE)","v":339}]
["Port Talbot No. 6&7 Boilers",340,"EPR/BL7108IM",null,"Tata Steel UK Limited",null,{"$f":"VLOOKUP(B92,[1]NOx!$I$6:$I$101,1,FALSE)","v":340}]
["British Steel Limited Scunthorpe Works 1 (Central Power Station Boiler Train)",341,"HP3736AW",null,"British Steel Limited",null,{"$f":"VLOOKUP(B93,[1]NOx!$I$6:$I$101,1,FALSE)","v":341}]
["British Steel Limited Scunthorpe Works 2 (Turbo Blower House Boilers 1-4)",342,"HP3736AW",null,"British Steel Limited",null,{"$f":"VLOOKUP(B94,[1]NOx!$I$6:$I$101,1,FALSE)","v":342}]
["British Steel Limited Scunthorpe Works 3 (Turbo Blower House Boilers 5-6)",343,"HP3736AW",null,"British Steel Limited",null,{"$f":"VLOOKUP(B95,[1]NOx!$I$6:$I$101,1,FALSE)","v":343}]
["Greatham Works",354,"TP3532PK",null,"Venator Materials UK Limited",null,{"$f":"VLOOKUP(B96,[1]NOx!$I$6:$I$101,1,FALSE)","v":354}]
["Kinneil Stack A1 (B -101) GT ,    Kinneil Stack A1 (B -101) Waste Heat Recovery Units ",360,"PPC/A1013107",null,"INEOS FPS Limited",null,{"$f":"VLOOKUP(B97,[1]NOx!$I$6:$I$101,1,FALSE)","v":360}]
["Winnington CHP Boiler Train",408,"EP3337N",null,"Winnington CHP Limited",null,{"$f":"VLOOKUP(B98,[1]NOx!$I$6:$I$101,1,FALSE)","v":408}]
["Port of Liverpool CHP - Package Boilers 1-3",417,"BK3506IS",null,"E.On UK CHP Limited",null,{"$f":"VLOOKUP(B99,[1]NOx!$I$6:$I$101,1,FALSE)","v":417}]
["Lynemouth Power Biomass Boiler",418,"FP3137CG",null,"Lynemouth Power Limited",null,{"$f":"VLOOKUP(B100,[1]NOx!$I$6:$I$101,1,FALSE)","v":418}]
[]
[null,null,null,null,null,null,"Total 95"]

{"sheet":"Lists","index":3,"n_rows":49,"n_cols":7,"rows_kept":49,"cut":false,"hidden":true,"merged":[]}
[null,null,null,null,null,"Operator Name","EDF Energy (Thermal Generation) Limited (Closed)"]
[]
["Reporting Year",null,"Operator Name","Sum of LCP Reference",null,"Sites List","Sum of LCP Reference"]
[2016,null,"AES Kilroot Power Limited",5,null,"Cottam Power Station Boiler Train",120]
[2017,null,"Arjo Wiggins",8]
[2018,null,"British Salt Limited",32]
[2019,null,"British Steel Limited",1026]
[2020,null,"British Sugar Plc",110]
["blank",null,"Centrica KL Limited",48]
["Grand Total",null,"Centrica KPS Limited (Closed)",159]
[null,null,"Deeside Power (UK) Limited",167]
[null,null,"Dow Silicones UK Ltd",60]
[null,null,"Drax Power Limited",91]
[null,null,"DSM Nutritional Products (UK) Limited",39]
[null,null,"E.On UK CHP Limited",1153]
[null,null,"E.ON UK Cogeneration Limited",305]
[null,null,"EDF Energy (Thermal Generation) Limited",261]
[null,null,"EDF Energy (Thermal Generation) Limited (Closed)",120]
[null,null,"EP SHB Limited",150]
[null,null,"EPR Ely Limited",135]
[null,null,"Ineos Chemicals (Grangemouth) Limited",401]
[null,null,"INEOS FPS Limited",360]
[null,null,"Ineos Infrastructure (Grangemouth) Limited",85]
[null,null,"INEOS Nitriles (UK) Limited",271]
[null,null,"Keadby Generation Limited",918]
[null,null,"Lynemouth Power Limited",418]
[null,null,"Medway Power Limited",437]
[null,null,"Michelin Tyre Plc",220]
[null,null,"PQ Silicas UK Limited",254]
[null,null,"PX Limited",0]
[null,null,"Rugeley Power Limited (Closed)",197]
[null,null,"RWE Generation UK Plc",2185]
[null,null,"Sabic UK Petrochemicals Limited",292]
[null,null,"Sahaviriya Steel Industries UK",297]
[null,null,"Saltend Cogeneration Company Limited",1202]
[null,null,"Scottish Power (Closed)",213]
[null,null,"Sellafield Limited",1270]
[null,null,"Simec Uskmouth Power Limited",312]
[null,null,"Solvay Interox Limited (Closed)",330]
[null,null,"SSE",164]
[null,null,"SSE Generation Limited (Closed)",311]
[null,null,"SSE Plc",294]
[null,null,"SSEPG (Operations) Limited",591]
[null,null,"Tata Steel UK Limited",1354]
[null,null,"Uniper UK Limited",1145]
[null,null,"Venator Materials UK Limited",354]
[null,null,"Versalis UK Ltd ",264]
[null,null,"Winnington CHP Limited",525]
[null,null,"Grand Total",18533]

{"sheet":"Sheet1","index":4,"n_rows":0,"n_cols":0,"rows_kept":0,"cut":false,"hidden":true,"merged":[]}

{"sheet":"Sheet2","index":5,"n_rows":0,"n_cols":0,"rows_kept":0,"cut":false,"hidden":true,"merged":[]}